Workbook

Sheet M-M-c
A1: Model 4 (M/M/s Queue):
B2: Multiple servers, Infinite population, Poisson arrival, FCFS, Exponential service time, Unlimited waiting room
B3: Yellow cells need user inputed values
A4: Inputs
B5: Units of time | C5: month
B6: Arrival rate - R | C6: 7
B7: Service rate - Rp | C7: 10
B8: Number of identical servers - c | C8: 1
A10: Outputs
B11: Direct outputs from inputs
B12: Mean time between arrivals- Ta | C12: =1/C6 -> 0.1428571429
B13: Mean time per service - Tp | C13: =1/C7 -> 0.1
B14: Traffic intensity - U | C14: =C6/C7/C8 -> 0.7
A16: Summary measures | D16: 7 | E16: 8 | F16: 9
B17: Average utilization rate of server - U | C17: =C6/C7/C8 -> 0.7 | D17: 0.7 | E17: 0.8 | F17: 0.9
B18: Average number of customers waiting in line Ii | C18: =(C6/C7)^(C8+1)/C8/FACT(C8)/(1-C6/C7/C8)^2 *C22 -> 1.633333333 | D18: 1.633333333 | E18: 3.2 | F18: 8.1
B19: Average number of customers in system I | C19: =C18+C6/C7 -> 2.333333333 | D19: 2.333333333 | E19: 4 | F19: 9
B20: Average time waiting in line Ti | C20: =C18/C6 -> 0.2333333333 | D20: 0.2333333333 | E20: 0.4 | F20: 0.9 | G20: =D20*30 -> 7 | H20: =E20*30 -> 12 | I20: =F20*30 -> 27
B21: Average time in system - T | C21: =C19/C6 -> 0.3333333333 | D21: 0.3333333333 | E21: 0.5 | F21: 1 | G21: =D21*30 -> 10 | H21: =E21*30 -> 15 | I21: 30
B22: Probability of no customers in system (P0) | C22: =P0inf(C8,C6/C7) -> 0.3 | D22: 0.3 | E22: 0.2 | F22: 0.1
B23: Probability that all servers are busy | C23: =(C8*C14)^C8/factorial(C8)/(1-C14)*C22 -> 0.7 | D23: 0.7 | E23: 0.8 | F23: 0.9
B24: Probability that at least one server is idle | C24: =1-C23 -> 0.3 | D24: 0.3 | E24: 0.2 | F24: 0.1
B26: Distribution of number of customers in system
B27: n (customers) | C27: P(n in system)
B28: 0 | C28: =IF(B28=0,C22,IF(B28<C8+1,(C8*C14)^B28/factorial(B28)*C22, (C8*C14)^B28/factorial(C8)/C8^(B28-C8)*C22)) -> 0.3
B30: Distribution of time in queue
B31: t (time in queue) | C31: P(wait > t)
B32: 0 | C32: =C23*EXP(-C8*C7*(1-C14)*B32) -> 0.7
